bitfinex/quotes_BTCUSD_20240826
["timestamp","ask_amount","ask_price","bid_price","bid_amount"]
[1724704507324,0.00906401,63537.0,63536.0,1.244037]
[1724704507631,0.00906401,63537.0,63536.0,1.7753366]
[1724704507845,0.00906401,63537.0,63536.0,2.4049006]
[1724704508053,0.00906401,63540.0,63539.0,1.24456419]
[1724704508202,0.00906401,63540.0,63539.0,1.8385092]
[1724704509805,0.00906401,63540.0,63539.0,1.8525092]
[1724704510024,0.00906401,63540.0,63539.0,2.1270506]
[1724704511009,0.00906401,63540.0,63539.0,2.1410506]
[1724704512783,0.00906401,63540.0,63539.0,2.1270506]
[1724704513155,0.00906401,63540.0,63539.0,2.1130506]
[1724704513306,0.00906401,63540.0,63539.0,2.1270506]
[1724704513691,0.00906401,63540.0,63539.0,2.1410506]
[1724704519676,0.00906401,63540.0,63539.0,1.6839836]
[1724704522129,0.00906401,63540.0,63539.0,1.9987506]
[1724704522466,0.00906401,63540.0,63539.0,1.6839836]
[1724704524989,0.00906401,63540.0,63539.0,1.6848076]
[1724704529518,0.07106401,63540.0,63539.0,1.38668601]
[1724704529729,0.14676401,63540.0,63539.0,1.38668601]
[1724704531228,0.14676401,63540.0,63539.0,1.37268601]
[1724704531655,0.14676401,63540.0,63539.0,1.35868601]
[1724704531928,0.14676401,63540.0,63539.0,1.05791901]
[1724704532446,0.14676401,63540.0,63539.0,0.74315201]
[1724704532644,0.14676401,63540.0,63539.0,0.75715201]
[1724704532828,0.14676401,63540.0,63539.0,1.05791901]
[1724704533199,0.00906401,63540.0,63539.0,1.06591901]
[1724704533377,0.00906401,63540.0,63539.0,1.05191901]
[1724704533576,0.00906401,63540.0,63539.0,1.06591901]
[1724704535758,0.00906401,63540.0,63539.0,1.38068601]
[1724704536387,0.00906401,63540.0,63539.0,1.06591901]
[1724704536594,0.00906401,63540.0,63539.0,1.38068601]
[1724704536992,0.08486401,63540.0,63539.0,0.75115201]
[1724704537314,0.15136401,63540.0,63539.0,0.75115201]
[1724704537516,0.15136401,63540.0,63539.0,1.06591901]
[1724704546242,0.15136401,63540.0,63539.0,0.594974]
[1724704546479,0.15136401,63540.0,63539.0,0.280207]
[1724704547427,0.62392682,63540.0,63539.0,0.022824]
[1724704547624,0.62392682,63540.0,63539.0,0.180207]
[1724704547625,0.15117459,63540.0,63539.0,0.180207]
[1724704547872,0.1515944,63540.0,63539.0,0.180207]
[1724704548307,0.1515944,63540.0,63539.0,0.494974]
[1724704548461,0.1515944,63540.0,63539.0,0.180207]
[1724704549773,0.15117459,63540.0,63539.0,0.180207]
[1724704550192,0.1515944,63540.0,63539.0,0.180207]
[1724704550626,0.15117459,63540.0,63539.0,0.65115201]
[1724704554393,0.15117459,63540.0,63539.0,0.96591901]
[1724704561563,0.15117459,63540.0,63539.0,1.28068601]
[1724704563468,0.00887459,63540.0,63539.0,1.28068601]
[1724704568137,0.00887459,63540.0,63539.0,1.67255301]
[1724704568341,0.00887459,63540.0,63539.0,1.77255301]
[1724704568540,0.00887459,63540.0,63539.0,1.7731332]
[1724704569775,0.00887459,63540.0,63539.0,1.77255301]
[1724704570112,0.00887459,63540.0,63539.0,1.69545301]
[1724704571289,0.07487459,63540.0,63539.0,1.38068601]
[1724704571886,0.15077459,63540.0,63539.0,1.06591901]
[1724704573987,0.15077459,63540.0,63539.0,0.75115201]
[1724704574998,0.00887459,63540.0,63539.0,1.06591901]
[1724704577942,0.00887459,63540.0,63539.0,1.38068601]
[1724704586183,0.00887459,63540.0,63539.0,1.8564332]
[1724704586949,0.00887459,63540.0,63539.0,1.8484332]
[1724704587151,0.00887459,63540.0,63539.0,1.8564332]
[1724704587616,0.00887459,63540.0,63539.0,1.95490864]
[1724704587751,0.0124327,63541.0,63540.0,1.29196176]
[1724704587951,0.0124327,63541.0,63540.0,1.73401521]
[1724704588181,0.0124327,63541.0,63540.0,2.04877721]
[1724704589443,0.0124327,63541.0,63540.0,2.06277721]
[1724704589972,0.0124327,63541.0,63540.0,2.07677721]
[1724704591432,0.01224328,63541.0,63540.0,2.07677721]
[1724704591654,0.01224328,63541.0,63540.0,1.97830177]
[1724704592057,0.01224328,63541.0,63540.0,2.07676904]
[1724704592259,0.01224328,63541.0,63540.0,1.97830177]
[1724704592615,0.01224328,63541.0,63540.0,2.076768]
[1724704593560,0.01314968,63541.0,63540.0,2.076768]
[1724704594113,0.01314968,63541.0,63540.0,2.062768]
[1724704594462,0.01314968,63541.0,63540.0,2.076768]
[1724704594664,0.01314968,63541.0,63540.0,2.062768]
[1724704595274,0.01314968,63541.0,63540.0,2.048768]
[1724704596062,0.01314968,63541.0,63540.0,2.062768]
[1724704596279,0.01314968,63541.0,63540.0,2.076768]
[1724704596492,0.01314968,63541.0,63540.0,2.062768]
[1724704596790,0.01314968,63541.0,63540.0,2.048768]
[1724704597037,0.01314968,63541.0,63540.0,2.062768]
[1724704597831,0.01314968,63541.0,63540.0,2.076768]
[1724704600156,0.01314968,63541.0,63540.0,1.96705343]
[1724704600378,0.01314968,63541.0,63540.0,1.40884501]
[1724704600579,0.01314968,63541.0,63540.0,1.3864252]
[1724704600580,0.07804968,63541.0,63540.0,1.3864252]
[1724704600787,0.07804968,63541.0,63540.0,1.49555958]
[1724704600992,0.07804968,63541.0,63540.0,1.49613977]
[1724704601976,0.07804968,63541.0,63540.0,1.3864252]
[1724704602154,0.07804968,63541.0,63540.0,1.49613977]
[1724704604789,0.07804968,63541.0,63540.0,1.49696377]
[1724704605881,0.01314968,63541.0,63540.0,1.49696377]
[1724704606485,0.01314968,63541.0,63540.0,1.81172577]
[1724704607450,0.01314968,63541.0,63540.0,1.89752577]
[1724704609291,0.01314968,63541.0,63540.0,1.99599362]
[1724704610901,0.01314968,63541.0,63540.0,1.93319362]
[1724704615138,0.01314968,63541.0,63540.0,1.98014104]
[1724704617226,0.01314968,63541.0,63540.0,1.98014865]
[1724704618057,0.15974968,63541.0,63540.0,1.53209189]
[1724704618256,0.15974968,63541.0,63540.0,1.59485143]
[1724704618458,0.15974968,63541.0,63540.0,1.49638358]
[1724704619487,0.15974968,63541.0,63540.0,1.48238358]
[1724704619867,0.15974968,63541.0,63540.0,1.49638358]
[1724704620112,0.15974968,63541.0,63540.0,1.48238358]
[1724704620317,0.15974968,63541.0,63540.0,1.49638358]
[1724704621007,0.15974968,63541.0,63540.0,1.48238358]
[1724704621409,0.15974968,63541.0,63540.0,1.49638358]
[1724704630181,0.15974968,63541.0,63540.0,0.18500201]
[1724704631191,0.15974968,63541.0,63540.0,0.15700201]
[1724704631568,0.15974968,63541.0,63540.0,0.18500201]
[1724704633592,0.95888183,63541.0,63540.0,0.028824]
[1724704634321,1.00604908,63541.0,63540.0,0.028824]
[1724704634548,0.95888183,63541.0,63540.0,0.028824]
[1724704635112,0.95888242,63541.0,63540.0,0.028824]
[1724704635559,0.94706149,63541.0,63540.0,0.028824]
[1724704635800,0.15974968,63541.0,63540.0,0.18500201]
[1724704636019,0.15974968,63541.0,63540.0,0.34238301]
[1724704636598,0.15974968,63541.0,63540.0,0.65714501]
[1724704636774,0.01314968,63541.0,63540.0,0.97190701]
[1724704636987,0.01314968,63541.0,63540.0,1.28666901]
[1724704638015,0.01314968,63541.0,63540.0,1.56083544]
[1724704640995,0.01314968,63541.0,63540.0,0.97190701]
[1724704641280,0.15174968,63541.0,63540.0,0.97190701]
[1724704642041,0.15174968,63541.0,63540.0,0.65714501]
[1724704642450,0.15174968,63541.0,63540.0,0.34238301]
[1724704643516,0.15174968,63541.0,63540.0,0.97190701]
[1724704643947,0.15174968,63541.0,63540.0,0.65714501]
[1724704644727,0.15156026,63541.0,63540.0,0.65714501]
[1724704646973,0.30935807,63541.0,63540.0,0.028824]
[1724704649417,0.15198007,63541.0,63540.0,0.028824]
[1724704654754,0.15156026,63541.0,63540.0,0.028824]
[1724704654957,0.15156026,63541.0,63540.0,0.186205]
[1724704655163,0.15198007,63541.0,63540.0,0.186205]
[1724704655542,0.15156026,63541.0,63540.0,0.186205]
[1724704655831,0.15156026,63541.0,63540.0,0.500967]
[1724704655832,0.15198007,63541.0,63540.0,0.500967]
[1724704658377,0.15156026,63541.0,63540.0,0.500967]
[1724704658934,0.15198007,63541.0,63540.0,0.500967]
[1724704661593,0.15198007,63541.0,63540.0,0.815729]
[1724704662224,0.15156026,63541.0,63540.0,0.815729]
[1724704663652,0.15156026,63541.0,63540.0,0.97190701]
[1724704663903,0.15156026,63541.0,63540.0,1.28666901]
[1724704666049,0.15156026,63541.0,63540.0,1.39636917]
[1724704667372,0.15156026,63541.0,63540.0,1.28666901]
[1724704667532,0.15156026,63541.0,63540.0,1.39636917]
[1724704669218,0.15198007,63541.0,63540.0,0.500967]
[1724704669967,0.15198007,63541.0,63540.0,0.028824]
[1724704669968,0.63593472,63541.0,63540.0,0.028824]
[1724704670880,0.63593472,63541.0,63540.0,0.014824]
[1724704671228,0.63593472,63541.0,63540.0,0.025824]
[1724704671822,0.30935807,63541.0,63540.0,0.011824]
[1724704672025,0.32117797,63541.0,63540.0,0.011824]
[1724704672234,0.63593497,63541.0,63540.0,0.025824]
[1724704672684,0.95069197,63541.0,63540.0,0.025824]
[1724704672885,1.6145502,63541.0,63540.0,0.025824]
[1724704673016,1.73249817,63541.0,63540.0,0.025824]
[1724704673431,1.6145502,63541.0,63540.0,0.000824]
[1724704673634,1.6145502,63541.0,63540.0,0.007824]
[1724704673860,1.6145502,63541.0,63540.0,0.009824]
[1724704674264,1.6145502,63541.0,63540.0,0.007824]
[1724704674896,1.6145502,63541.0,63540.0,0.000824]
[1724704675266,1.6145502,63541.0,63540.0,0.003824]
[1724704675267,1.72064397,63541.0,63540.0,0.003824]
[1724704675445,1.7088657,63541.0,63540.0,0.003824]
[1724704675637,1.7088657,63541.0,63540.0,0.000824]
[1724704675844,1.7088657,63541.0,63540.0,0.001824]
[1724704676263,1.7118657,63541.0,63540.0,0.001824]
[1724704676668,1.7088657,63541.0,63540.0,0.001824]
[1724704677113,1.71286465,63541.0,63540.0,0.001824]
[1724704677491,1.61855191,63541.0,63540.0,0.001824]
[1724704678519,1.26945068,63541.0,63540.0,0.001824]
[1724704679710,1.34015337,63541.0,63540.0,0.001824]
[1724704681154,1.26945068,63541.0,63540.0,0.001824]
[1724704681528,1.34014818,63541.0,63540.0,0.001824]
[1724704683883,1.34014814,63541.0,63540.0,0.001824]
[1724704684450,1.01356957,63541.0,63540.0,0.001824]
[1724704684677,1.02539114,63541.0,63540.0,0.001824]
[1724704685724,0.71063414,63541.0,63540.0,0.001824]
[1724704685930,0.21492914,63541.0,63540.0,0.001824]
[1724704686133,0.37230714,63541.0,63540.0,0.001824]
[1724704686338,0.32517964,63541.0,63540.0,0.001824]
[1724704686969,0.63993664,63541.0,63540.0,0.001824]
[1724704690307,0.157383,63539.0,63536.0,0.16258717]
[1724704690519,0.48255864,63541.0,63536.0,0.16258717]
[1724704690520,0.00041981,63537.0,63536.0,0.47736917]
[1724704691090,0.00041981,63537.0,63536.0,0.79215117]
[1724704691471,0.00041981,63537.0,63536.0,0.79515117]
[1724704691672,0.00041981,63537.0,63536.0,0.47736917]
[1724704691885,0.00041981,63537.0,63536.0,0.79215117]
[1724704692086,0.00041981,63537.0,63536.0,0.48236917]
[1724704692289,0.00041981,63537.0,63536.0,0.47736917]
[1724704692685,0.00041981,63537.0,63536.0,0.48536917]
[1724704692887,0.00041981,63537.0,63536.0,0.47736917]
[1724704693211,0.00041981,63537.0,63536.0,0.47936917]
[1724704694403,0.00041981,63537.0,63536.0,0.47736917]
[1724704694602,0.00041981,63537.0,63536.0,0.47936917]
[1724704694800,0.00041981,63537.0,63536.0,0.48636917]
[1724704695007,0.00041981,63537.0,63536.0,0.17158717]
[1724704695654,0.01224056,63537.0,63536.0,0.17158717]
[1724704696072,0.01224056,63537.0,63536.0,0.01502117]
[1724704696429,0.01224056,63537.0,63536.0,0.17241217]
[1724704697280,0.01224056,63537.0,63536.0,0.01502117]
[1724704697804,0.01224056,63537.0,63536.0,0.17241217]
[1724704697922,0.01224056,63537.0,63536.0,0.01502117]
[1724704699821,0.01224058,63537.0,63536.0,0.01502117]
[1724704700280,0.00041981,63537.0,63536.0,0.01502117]
[1724704700427,0.01224056,63537.0,63536.0,0.01502117]
[1724704700650,0.16962856,63537.0,63536.0,0.01502117]
[1724704701262,0.01224056,63537.0,63536.0,0.01502117]
[1724704703344,0.00041981,63537.0,63536.0,0.01502117]
[1724704703717,0.0122404,63537.0,63536.0,0.01502117]
[1724704707228,0.0122404,63537.0,63536.0,0.009824]
[1724704707229,0.9393824,63537.0,63536.0,0.009824]
[1724704707432,0.6246054,63537.0,63536.0,0.009824]
[1724704707544,0.9393824,63537.0,63536.0,0.009824]
[1724704707747,0.9865099,63537.0,63536.0,0.009824]
[1724704709730,0.9393824,63537.0,63536.0,0.009824]
[1724704712705,0.93938348,63537.0,63536.0,0.009824]
[1724704715931,0.62460647,63537.0,63536.0,0.009824]
[1724704716126,0.30982947,63537.0,63536.0,0.009824]
[1724704716477,0.01224147,63537.0,63536.0,0.009824]
[1724704716924,0.16962945,63537.0,63536.0,0.009824]
[1724704718791,0.01224145,63537.0,63536.0,0.009824]
[1724704719422,0.01314785,63537.0,63536.0,0.009824]
[1724704721771,0.15494785,63537.0,63536.0,0.009824]
[1724704722033,0.94188985,63537.0,63536.0,0.009824]
[1724704722212,0.62711395,63537.0,63536.0,0.009824]
[1724704722815,0.97622618,63537.0,63536.0,0.009824]
[1724704722968,1.29100318,63537.0,63536.0,0.009824]
[1724704725225,1.29100216,63537.0,63536.0,0.009824]
[1724704726779,0.97622516,63537.0,63536.0,0.009824]
[1724704727701,1.29100216,63537.0,63536.0,0.009824]
[1724704728320,1.29100241,63537.0,63536.0,0.009824]
[1724704728720,0.97622541,63537.0,63536.0,0.009824]
[1724704729118,1.29100241,63537.0,63536.0,0.009824]
[1724704729694,1.40908022,63537.0,63536.0,0.009824]
[1724704729831,1.09430322,63537.0,63536.0,0.009824]
[1724704730286,0.97622541,63537.0,63536.0,0.009824]
[1724704730487,1.29100241,63537.0,63536.0,0.009824]
[1724704731117,1.40907768,63537.0,63536.0,0.009824]
[1724704731469,0.97622541,63537.0,63536.0,0.009824]
[1724704731679,1.09430068,63537.0,63536.0,0.009824]
[1724704731938,1.09429251,63537.0,63536.0,0.009824]
[1724704732116,0.97622186,63537.0,63536.0,0.009824]
[1724704732473,1.07067665,63537.0,63536.0,0.009824]
[1724704733115,0.99307665,63537.0,63536.0,0.009824]
[1724704733478,0.45671165,63537.0,63536.0,0.009824]
[1724704733693,0.01314818,63537.0,63536.0,0.27694495]
[1724704733871,0.01314818,63537.0,63536.0,0.167215]
[1724704734078,0.06037288,63537.0,63536.0,0.167215]
[1724704734477,0.06037288,63537.0,63536.0,0.481997]
[1724704734478,0.01314818,63537.0,63536.0,0.481997]
[1724704734614,0.00132621,63537.0,63536.0,0.481997]
[1724704734818,0.01314645,63537.0,63536.0,0.481997]
[1724704735020,0.00132621,63537.0,63536.0,0.481997]
[1724704735241,0.01314636,63537.0,63536.0,0.481997]
[1724704738508,0.01314636,63537.0,63536.0,0.167215]
[1724704739684,0.00132621,63537.0,63536.0,0.167215]
[1724704739976,0.00132621,63537.0,63536.0,0.481997]
[1724704740178,0.01314642,63537.0,63536.0,0.481997]
[1724704742878,0.01314642,63537.0,63536.0,0.167215]
[1724704745653,0.00132621,63537.0,63536.0,0.167215]
[1724704745852,0.01314672,63537.0,63536.0,0.27694495]
[1724704746251,0.01272691,63537.0,63536.0,0.27694495]
[1724704746456,0.0009064,63537.0,63536.0,1.51686896]
[1724704746798,0.01296026,63541.0,63540.0,0.86428519]
[1724704747067,0.00946401,63559.0,63558.0,0.930582]
[1724704747265,0.00946401,63559.0,63558.0,1.51116296]
[1724704747658,0.00946401,63559.0,63558.0,1.92641615]
[1724704747861,0.00946401,63559.0,63558.0,1.94941615]
[1724704748300,0.00946401,63559.0,63558.0,1.99649591]
[1724704748514,0.46876099,63578.0,63562.0,1.49541819]
[1724704748639,0.46876099,63578.0,63562.0,1.94932615]
[1724704749861,0.46876099,63578.0,63562.0,1.96332615]
[1724704750200,0.46876099,63578.0,63562.0,1.62567315]
[1724704750794,0.46876099,63578.0,63562.0,1.62509296]
[1724704751144,0.00041981,63573.0,63562.0,1.32443996]
[1724704751360,0.00041981,63572.0,63562.0,1.32443996]
[1724704751762,0.00041981,63572.0,63562.0,1.31043996]
[1724704751985,0.00041981,63572.0,63562.0,1.32443996]
[1724704752185,0.00041981,63568.0,63562.0,0.83505701]
[1724704752387,0.00041981,63565.0,63562.0,0.28417801]
[1724704752589,0.15773981,63565.0,63562.0,0.27017801]
[1724704752761,0.16638801,63563.0,63562.0,0.18417801]
[1724704752896,0.16638801,63563.0,63562.0,0.28417801]
[1724704753098,0.00906401,63563.0,63562.0,0.28417801]
[1724704753306,0.00906401,63563.0,63562.0,0.25617801]
[1724704753564,0.00906401,63563.0,63562.0,0.27017801]
[1724704753968,0.00906401,63563.0,63562.0,0.25617801]
[1724704754164,0.00906401,63563.0,63562.0,0.27117801]
[1724704756418,0.00906401,63563.0,63562.0,0.25617801]
[1724704756792,0.16638801,63563.0,63562.0,0.27117801]
[1724704756992,0.16638801,63563.0,63562.0,0.115]
[1724704756993,0.48145582,63563.0,63562.0,0.115]
[1724704757198,0.16680782,63563.0,63562.0,0.115]
[1724704758685,0.16680782,63563.0,63562.0,0.015]
[1724704758820,0.00948382,63563.0,63562.0,0.015]
[1724704759221,0.16680782,63563.0,63562.0,0.015]
[1724704759586,0.00906401,63563.0,63562.0,0.17117801]
[1724704759793,0.00906401,63563.0,63562.0,0.27117801]
[1724704759997,0.00906401,63563.0,63562.0,0.42850401]
[1724704761824,0.00906401,63563.0,63562.0,0.74315701]
[1724704762280,0.00906401,63563.0,63562.0,1.05781001]
[1724704762904,0.00906401,63563.0,63562.0,1.13691001]
[1724704770154,0.00906401,63563.0,63562.0,1.45156301]
[1724704772157,0.00906401,63563.0,63562.0,1.56118766]
[1724704776438,0.00906401,63563.0,63562.0,1.48208766]
[1724704776439,0.00887465,63563.0,63562.0,1.48208766]
[1724704777289,0.00887465,63563.0,63562.0,1.05781001]
[1724704780720,0.00887465,63563.0,63562.0,0.27117801]
[1724704780919,0.00887465,63563.0,63562.0,0.42850401]
[1724704783614,0.00887465,63563.0,63562.0,0.74315701]
[1724704783947,0.00887465,63563.0,63562.0,0.42850401]
[1724704784480,0.00887465,63563.0,63562.0,0.74315701]
[1724704785760,0.00887465,63563.0,63562.0,1.05781001]
[1724704797587,0.00887465,63563.0,63562.0,1.37246301]
[1724704797794,0.00887465,63563.0,63562.0,1.43726301]
[1724704800024,0.00887465,63563.0,63562.0,1.37246301]
[1724704800486,0.00887465,63563.0,63562.0,1.37328701]
[1724704803969,0.00887465,63563.0,63562.0,1.48291166]
[1724704806184,0.08907465,63563.0,63562.0,1.05863401]
[1724704813365,0.08907465,63563.0,63562.0,0.015824]
[1724704813366,0.36946597,63563.0,63562.0,0.015824]
[1724704813515,0.1649097,63563.0,63562.0,0.015824]
[1724704813712,0.23575811,63563.0,63562.0,0.17315]
[1724704814236,0.2353383,63563.0,63562.0,0.17315]
[1724704814564,0.2353383,63563.0,63562.0,0.487803]
[1724704814565,0.16448989,63563.0,63562.0,0.487803]
[1724704814712,0.02068989,63563.0,63562.0,0.64398101]
[1724704814897,0.00887465,63563.0,63562.0,0.64398101]
[1724704816291,0.00887465,63563.0,63562.0,0.95863401]
[1724704817761,0.02068963,63563.0,63562.0,0.95863401]
[1724704817964,0.02068978,63563.0,63562.0,0.95863401]
[1724704818398,0.09950959,63563.0,63562.0,0.64398101]
[1724704818547,0.20874601,63563.0,63562.0,0.64398101]
[1724704819152,0.20874156,63563.0,63562.0,0.64398101]
[1724704819457,0.14950511,63563.0,63562.0,0.64398101]
[1724704819644,0.16132066,63563.0,63562.0,0.64398101]
[1724704820496,0.02050085,63563.0,63562.0,0.64398101]
[1724704820720,0.0086853,63563.0,63562.0,0.64398101]
[1724704823117,0.0086853,63563.0,63562.0,0.95863401]
[1724704825387,0.00910511,63563.0,63562.0,0.95863401]
[1724704825600,0.0086853,63563.0,63562.0,0.95863401]
[1724704825977,0.00910511,63563.0,63562.0,0.95863401]
[1724704829504,0.02092004,63563.0,63562.0,0.95863401]
[1724704831800,0.00910511,63563.0,63562.0,0.95863401]
[1724704832021,0.02092016,63563.0,63562.0,0.95863401]
[1724704832600,0.00910511,63563.0,63562.0,0.95863401]
[1724704832809,0.02092026,63563.0,63562.0,0.95863401]
[1724704835391,0.09902026,63563.0,63562.0,0.95863401]
[1724704836080,0.09902037,63563.0,63562.0,1.06825866]
[1724704839534,0.08720511,63563.0,63562.0,1.06825866]
[1724704839732,0.09902037,63563.0,63562.0,1.06825866]
[1724704843562,0.09902037,63563.0,63562.0,0.95863401]
[1724704850114,0.02092037,63563.0,63562.0,0.95863401]
[1724704850339,0.0086853,63563.0,63562.0,1.35608701]
[1724704850548,0.0086853,63563.0,63562.0,1.42218701]
[1724704851446,0.0086853,63563.0,63562.0,1.41718701]
[1724704851612,0.0086853,63563.0,63562.0,1.42218701]
[1724704852093,0.0086853,63563.0,63562.0,1.41718701]
[1724704852652,0.0086853,63563.0,63562.0,1.43218701]
[1724704852842,0.0086853,63563.0,63562.0,1.41818701]
[1724704854221,0.0086853,63563.0,63562.0,1.43218701]
[1724704860342,0.0086853,63563.0,63562.0,1.54181166]
[1724704863176,0.0086853,63563.0,63562.0,1.95646466]
[1724704863387,0.00849595,63563.0,63562.0,1.95646466]
[1724704866139,0.00849595,63563.0,63562.0,1.95704485]
[1724704867544,0.00849595,63563.0,63562.0,1.94304485]
[1724704867748,0.00849595,63563.0,63562.0,1.94604485]
[1724704868444,0.00849595,63563.0,63562.0,1.96004485]
[1724704868647,0.00849595,63563.0,63562.0,1.94604485]
[1724704869050,0.00849595,63563.0,63562.0,1.96004485]
[1724704871295,0.00849595,63563.0,63562.0,1.94604485]
[1724704871670,0.00849595,63563.0,63562.0,1.96004485]
[1724704872052,0.00849595,63563.0,63562.0,1.94604485]
[1724704872510,0.00849595,63563.0,63562.0,1.96004485]
[1724704872704,0.00849595,63563.0,63562.0,1.81056466]
[1724704874139,0.00849595,63563.0,63562.0,1.79656466]
[1724704875502,0.00849595,63563.0,63562.0,1.81056466]
[1724704875779,0.00849595,63563.0,63562.0,1.70094001]
[1724704875993,0.00849595,63563.0,63562.0,1.81056466]
[1724704901702,0.08899595,63563.0,63562.0,1.81056466]
[1724704906251,0.08899595,63563.0,63562.0,1.70094001]
[1724704906507,0.08899595,63563.0,63562.0,1.81056466]
[1724704921781,0.08899595,63563.0,63562.0,1.99680063]
[1724704922378,0.00849595,63563.0,63562.0,1.99680063]
[1724704923210,0.00849595,63563.0,63562.0,1.97946253]
[1724704924267,0.00849595,63563.0,63562.0,2.43689572]
[1724704924475,0.006695,63575.0,63574.0,1.35348384]
[1724704924685,0.00907501,63583.0,63582.0,0.65705565]
[1724704924929,0.46876099,63593.0,63582.0,0.65705565]
[1724704924930,0.14856401,63592.0,63583.0,0.15785419]
[1724704925144,0.00906401,63592.0,63583.0,1.2576792]
[1724704925360,0.00906401,63592.0,63583.0,1.98992199]
[1724704925533,0.00906401,63592.0,63583.0,2.01292199]
[1724704926711,0.00906401,63592.0,63583.0,2.02692199]
[1724704926917,0.00906401,63592.0,63583.0,2.0344841]
[1724704927325,0.00906401,63592.0,63583.0,2.0204841]
[1724704927657,0.00101386,63584.0,63583.0,2.0344841]
[1724704928247,0.00101386,63584.0,63583.0,1.69379031]
[1724704928446,0.00101386,63584.0,63583.0,1.80283477]
[1724704928703,0.08351386,63584.0,63583.0,0.74956312]
[1724704928900,0.08351386,63584.0,63583.0,0.84518777]
[1724704929130,0.08351386,63584.0,63583.0,0.85918777]
[1724704929302,0.08351386,63584.0,63583.0,0.87318777]
[1724704929501,0.08351386,63584.0,63583.0,0.85918777]
[1724704929712,0.08351386,63584.0,63583.0,0.84518777]
[1724704929911,0.08351386,63584.0,63583.0,0.86818777]
[1724704930113,0.08351386,63584.0,63583.0,0.85618777]
[1724704930318,0.08351386,63584.0,63583.0,1.17073677]
[1724704930541,0.08351386,63584.0,63583.0,1.17173677]
[1724704930701,0.08351386,63584.0,63583.0,0.85718777]
[1724704930911,0.08351386,63584.0,63583.0,0.86818777]
[1724704931336,0.08351386,63584.0,63583.0,1.18273677]
[1724704933306,0.08351386,63584.0,63583.0,1.15973677]
[1724704933532,0.08351386,63584.0,63583.0,1.17073677]
[1724704933748,0.08351386,63584.0,63583.0,1.18473677]
[1724704934134,0.08351386,63584.0,63583.0,1.17373677]
[1724704935387,0.08351386,63584.0,63583.0,1.50228577]
[1724704940045,0.08351386,63584.0,63583.0,1.50319217]
[1724704948949,0.00101386,63584.0,63583.0,1.50319217]
[1724704950598,0.00101386,63584.0,63583.0,1.81774117]
[1724704951039,0.00101386,63584.0,63583.0,1.96662136]
[1724704952352,0.00906401,63592.0,63585.0,1.41600519]
[1724704952583,0.00906401,63592.0,63591.0,0.15783419]
[1724704952792,0.00906401,63592.0,63591.0,1.15265485]
[1724704952989,0.00906401,63592.0,63591.0,1.78167285]
[1724704953784,0.001,63600.0,63598.0,1.415137]
[1724704953963,0.001,63600.0,63598.0,1.74971501]
[1724704955025,0.001,63600.0,63598.0,1.8115952]
[1724704955229,0.00018979,63610.0,63603.0,0.15780519]
[1724704955463,0.00018979,63610.0,63609.0,0.47163]
[1724704955703,0.00018979,63610.0,63609.0,1.89683288]
[1724704956125,0.00018979,63610.0,63609.0,2.0606934]
[1724704956325,0.00018979,63610.0,63609.0,2.06127359]
[1724704956760,0.00018979,63610.0,63609.0,2.07527359]
[1724704957586,0.00018979,63610.0,63609.0,2.08927359]
[1724704958035,0.00018979,63610.0,63609.0,2.04963337]
[1724704958237,0.00018979,63610.0,63609.0,1.65813318]
[1724704958435,0.00018979,63610.0,63609.0,1.38464801]
[1724704958881,0.00018979,63610.0,63609.0,1.07022801]
[1724704959289,0.00018979,63610.0,63609.0,0.76358264]
[1724704959464,0.00018979,63610.0,63609.0,0.74958264]
[1724704959465,0.07848979,63610.0,63609.0,0.74958264]
[1724704959697,0.07848979,63610.0,63609.0,0.76358264]
[1724704960105,0.07848979,63610.0,63609.0,0.74958264]
[1724704960502,0.07848979,63610.0,63609.0,1.07800264]
[1724704960714,0.1452096,63610.0,63609.0,0.44916264]
[1724704961162,0.1452096,63610.0,63609.0,0.19195264]
[1724704961646,0.1452096,63610.0,63609.0,0.02177463]
[1724704961790,0.1452096,63610.0,63609.0,0.03577463]
[1724704961991,0.1452096,63610.0,63609.0,0.02177463]
[1724704962196,0.1452096,63610.0,63609.0,0.00777463]
[1724704962392,0.1437,63609.0,63605.0,0.257219]
[1724704962610,0.0774,63608.0,63605.0,0.257219]
[1724704963239,0.0774,63608.0,63605.0,0.1]
[1724704963469,0.0774,63608.0,63604.0,0.10746054]
[1724704963664,0.0774,63608.0,63606.0,0.157217]
[1724704965094,0.00041981,63605.0,63604.0,0.25617801]
[1724704965305,0.14231981,63605.0,63604.0,0.1]
[1724704965458,0.0801,63604.0,63603.0,0.00760788]
[1724704965663,0.0801,63604.0,63602.0,0.157226]
[1724704965863,0.0801,63604.0,63603.0,0.1]
[1724704966063,0.0801,63604.0,63603.0,0.257225]
[1724704966578,0.0801,63604.0,63603.0,0.571675]
[1724704967376,0.0801,63604.0,63603.0,0.584675]
[1724704968425,0.0801,63604.0,63603.0,0.598675]
[1724704968803,0.08051981,63604.0,63603.0,0.598675]
[1724704971934,0.08051981,63604.0,63603.0,0.284225]
[1724704973449,0.08051981,63604.0,63603.0,0.184225]
[1724704975125,0.08051981,63604.0,63603.0,0.1851314]
[1724704975348,0.08134381,63604.0,63603.0,0.1851314]
[1724704978902,0.08134381,63604.0,63603.0,0.4995814]
[1724704984059,0.08134381,63604.0,63603.0,0.8140314]
[1724704986024,0.080924,63604.0,63603.0,0.8140314]
[1724704986922,0.08134381,63604.0,63603.0,0.8140314]
[1724704987131,0.08134381,63604.0,63603.0,0.4995814]
[1724704987325,0.08134381,63604.0,63603.0,0.8140314]
[1724704987544,0.000824,63604.0,63603.0,1.28465941]
[1724704987769,0.000824,63604.0,63603.0,1.34945941]
[1724704988857,0.000824,63604.0,63603.0,1.32245941]
[1724704989066,0.000824,63604.0,63603.0,1.35045941]
[1724704989298,0.000824,63604.0,63603.0,1.28565941]
[1724704990073,0.00063477,63604.0,63603.0,1.28565941]
[1724704991722,0.04703189,63618.0,63605.0,0.0777]
[1724704991899,0.00018975,63621.0,63620.0,0.471549]
[1724704992125,0.00018975,63621.0,63620.0,1.35645901]
[1724704993942,0.00018975,63621.0,63620.0,1.40359923]
[1724704994143,0.00018975,63621.0,63620.0,1.35645901]
[1724704994875,0.00018975,63621.0,63620.0,1.37045901]
[1724704995286,0.00018975,63621.0,63620.0,1.38445901]
[1724704995490,0.08338975,63621.0,63620.0,0.66346612]
[1724704995638,0.08338975,63621.0,63620.0,0.94983212]
[1724704995848,0.08338975,63621.0,63620.0,0.64946612]
[1724704996021,0.08338975,63621.0,63620.0,0.028]
[1724704996222,0.08338975,63621.0,63620.0,0.185183]
[1724704996606,0.08338975,63621.0,63620.0,0.485549]
[1724704997045,0.08338975,63621.0,63620.0,0.499549]
[1724704997670,0.08338975,63621.0,63620.0,0.485549]
[1724704997897,0.08338975,63621.0,63620.0,0.185183]